bitfinex-derivatives/quotes_ETHF0:USTF0_20250604
["timestamp","ask_amount","ask_price","bid_price","bid_amount"]
[1749041779824,0.98011634,2621.1,2621.0,0.76262]
[1749041780032,4.95050634,2621.1,2621.0,4.655]
[1749041780221,9.95050634,2621.1,2621.0,4.655]
[1749041780420,4.95050634,2621.1,2621.0,4.655]
[1749041780622,4.95050634,2621.1,2621.0,5.41762]
[1749041780827,3.21351614,2621.1,2621.0,5.41762]
[1749041781125,4.94914039,2621.1,2621.0,5.41762]
[1749041781330,6.23564039,2621.1,2621.0,5.41762]
[1749041782127,10.47305039,2621.1,2620.6,0.00571614]
[1749041782426,3.2078,2620.7,2620.6,0.76845614]
[1749041782627,4.18083425,2620.7,2620.6,5.42345614]
[1749041783826,4.18083425,2620.7,2620.6,0.76845614]
[1749041784025,4.18083425,2620.7,2620.6,5.42345614]
[1749041785127,4.17643306,2620.7,2620.6,5.42345614]
[1749041785516,4.17643306,2620.7,2620.6,6.07325614]
[1749041786523,4.93914306,2620.7,2620.6,5.42345614]
[1749041786731,4.79383306,2620.7,2620.6,5.42345614]
[1749041787119,4.79383306,2620.7,2620.6,0.76845614]
[1749041787120,6.09793306,2620.7,2620.6,0.76845614]
[1749041787325,6.86064306,2620.7,2620.6,0.76845614]
[1749041787725,6.09793306,2620.7,2620.6,0.76845614]
[1749041788330,6.09687196,2620.7,2620.6,0.76845614]
[1749041789425,6.85958196,2620.7,2620.6,0.76845614]
[1749041789624,6.09687196,2620.7,2620.6,0.76845614]
[1749041790629,6.09687196,2620.7,2620.6,5.42445614]
[1749041793629,6.0943923,2620.7,2620.6,5.42445614]
[1749041796827,6.8571023,2620.7,2620.6,5.42445614]
[1749041797034,6.8571023,2620.7,2620.6,0.00571614]
[1749041797233,6.8571023,2620.7,2620.1,39.0848]
[1749041797234,0.76274,2620.6,2620.5,4.636]
[1749041797430,1.90693,2620.5,2619.9,1.9073]
[1749041797628,3.2078,2620.0,2619.9,0.76294]
[1749041797933,4.17180897,2620.0,2619.9,5.39894]
[1749041798125,4.17180897,2620.0,2619.9,0.76294]
[1749041798331,6.13290897,2620.0,2619.9,5.39894]
[1749041800234,4.83300897,2620.0,2619.9,5.39894]
[1749041801839,3.869,2620.0,2619.9,5.39894]
[1749041802039,4.83186547,2620.0,2619.9,5.39894]
[1749041804338,4.83186547,2620.0,2619.9,5.39994]
[1749041805031,4.83186547,2620.0,2619.8,2.53753]
[1749041805032,4.83186547,2620.0,2619.7,4.64271614]
[1749041805232,0.96286547,2619.9,2619.8,0.76297]
[1749041806136,3.869,2620.0,2619.9,0.76294]
[1749041806328,4.83212052,2620.0,2619.9,0.76294]
[1749041807034,5.59503052,2620.0,2619.9,0.76294]
[1749041807337,4.83212052,2620.0,2619.9,0.76294]
[1749041807729,6.06972052,2620.0,2619.9,0.76294]
[1749041807924,6.06972052,2620.0,2619.9,5.39994]
[1749041810335,6.06914967,2620.0,2619.9,5.39994]
[1749041810838,4.17034967,2620.0,2619.9,5.39994]
[1749041814342,4.17034967,2620.0,2619.9,6.03184]
[1749041814641,4.17145133,2620.0,2619.9,6.03184]
[1749041817840,0.96365133,2620.0,2619.9,6.03184]
[1749041818539,3.2078,2620.5,2620.4,0.7628]
[1749041818742,4.17336959,2620.5,2620.4,5.3998]
[1749041821346,4.17393394,2620.5,2620.4,5.3998]
[1749041823240,5.47823394,2620.5,2620.4,5.3998]
[1749041825457,5.47904103,2620.5,2620.4,5.3998]
[1749041829657,5.47869909,2620.5,2620.4,5.3998]
[1749041830253,6.24146909,2620.5,2620.4,5.3998]
[1749041831048,5.47869909,2620.5,2620.4,5.3998]
[1749041833855,4.5121,2620.5,2620.4,5.3998]
[1749041834158,5.47874245,2620.5,2620.4,5.3998]
[1749041834459,6.24151245,2620.5,2620.4,5.3998]
[1749041834660,5.47874245,2620.5,2620.4,5.3998]
[1749041836458,0.76291,2620.1,2620.0,0.76287]
[1749041836659,4.93735245,2620.1,2620.0,5.37487]
[1749041837256,4.17444245,2620.1,2620.0,5.37487]
[1749041837453,5.42014245,2620.1,2620.0,5.37487]
[1749041838063,4.4535,2620.1,2620.0,5.37487]
[1749041838257,5.43990419,2620.1,2620.0,5.37487]
[1749041839570,6.20279419,2620.1,2620.0,5.37487]
[1749041840067,6.20279419,2620.1,2620.0,0.76287]
[1749041840266,6.20279419,2620.1,2620.0,5.37487]
[1749041840463,6.20279419,2620.1,2620.0,5.37491]
[1749041840868,5.43990419,2620.1,2620.0,5.37491]
[1749041841165,6.20279419,2620.1,2620.0,5.37491]
[1749041841471,5.43990419,2620.1,2620.0,5.37491]
[1749041843773,4.19420419,2620.1,2620.0,5.37491]
[1749041846071,4.19420419,2620.1,2620.0,6.00211]
[1749041846476,4.18873976,2620.1,2620.0,6.00211]
[1749041847970,4.18302362,2620.1,2620.0,11.00211]
[1749041848271,0.98093976,2620.1,2620.0,11.00211]
[1749041848475,3.2078,2620.4,2620.3,0.76283]
[1749041848776,4.18853461,2620.4,2620.3,0.76283]
[1749041850177,4.18853461,2620.4,2620.1,4.612]
[1749041850374,3.53453461,2620.3,2620.2,0.76284]
[1749041850680,3.53061079,2620.3,2620.2,0.76284]
[1749041854177,2.5538,2620.3,2620.2,0.76284]
[1749041854875,2.5538,2620.3,2620.2,5.37484]
[1749041855077,3.31663,2620.3,2620.2,5.37484]
[1749041855277,3.52577831,2620.3,2620.2,5.37484]
[1749041855571,0.76291,2620.1,2620.0,0.76288]
[1749041855778,4.17977831,2620.1,2620.0,0.76288]
[1749041855973,4.17977831,2620.1,2620.0,5.37488]
[1749041856171,5.47557831,2620.1,2620.0,5.37488]
[1749041858477,5.47557831,2620.1,2620.0,0.76288]
[1749041858772,6.23845831,2620.1,2620.0,0.76288]
[1749041859077,6.23792103,2620.1,2620.0,0.76288]
[1749041859374,5.47504103,2620.1,2619.9,4.61]
[1749041859574,5.47504103,2620.1,2619.9,5.37291]
[1749041859575,2.97711103,2620.0,2619.9,5.37291]
[1749041859975,2.21414103,2620.0,2619.9,5.37291]
[1749041860678,2.21414103,2620.0,2619.9,0.76291]
[1749041860978,2.21414103,2620.0,2619.9,5.37291]
[1749041861672,0.97144103,2620.0,2619.9,5.37291]
[1749041862968,3.2078,2620.1,2620.0,0.76291]
[1749041863171,4.17488444,2620.1,2620.0,0.76291]
[1749041863371,4.17488444,2620.1,2620.0,1.36451]
[1749041866270,4.93776444,2620.1,2620.0,0.76291]
[1749041866783,4.93776444,2620.1,2620.0,5.37291]
[1749041867374,4.93788838,2620.1,2620.0,5.37291]
[1749041867884,4.17500838,2620.1,2620.0,5.37291]
[1749041868187,4.93788838,2620.1,2620.0,5.37291]
[1749041868381,5.42610838,2620.1,2620.0,5.37291]
[1749041870885,6.18898838,2620.1,2620.0,5.37291]
[1749041871087,5.42610838,2620.1,2620.0,5.37291]
[1749041871288,5.42610838,2620.1,2620.0,0.76291]
[1749041871590,5.42610838,2620.1,2620.0,5.37291]
[1749041875689,5.42633127,2620.1,2620.0,5.37291]
[1749041876088,6.18921127,2620.1,2620.0,5.37291]
[1749041876291,5.42633127,2620.1,2620.0,5.37291]
[1749041876491,6.18921127,2620.1,2620.0,5.37291]
[1749041877292,5.42633127,2620.1,2620.0,5.37291]
[1749041879691,6.18921127,2620.1,2620.0,5.37291]
[1749041879987,6.19032269,2620.1,2620.0,0.76291]
[1749041880295,6.19032269,2620.1,2620.0,4.61]
[1749041880792,6.19050738,2620.1,2620.0,4.61]
[1749041881186,12.33486738,2620.1,2619.7,0.76870614]
[1749041881383,3.97077,2619.8,2619.7,0.00571614]
[1749041881591,4.93949738,2619.8,2619.7,0.00571614]
[1749041881895,4.93949738,2619.8,2619.7,0.76871614]
[1749041882396,6.85999738,2619.8,2619.7,0.76871614]
[1749041883391,6.09702738,2619.8,2619.7,0.76871614]
[1749041883892,6.85999738,2619.8,2619.7,0.76871614]
[1749041884394,6.09702738,2619.8,2619.7,0.76871614]
[1749041886589,6.09702738,2619.8,2619.7,0.8360309]
[1749041886791,6.09515367,2619.8,2619.7,0.8360309]
[1749041887088,4.17465367,2619.8,2619.7,0.8360309]
[1749041887699,4.17465367,2619.8,2619.7,0.76871614]
[1749041890897,4.17500761,2619.8,2619.7,0.76871614]
[1749041891999,4.93797761,2619.8,2619.7,0.00571614]
[1749041893102,6.21617761,2619.8,2619.7,0.00571614]
[1749041894796,6.21617761,2619.8,2619.7,0.0730309]
[1749041895405,0.76316,2619.3,2619.2,0.76312]
[1749041895711,4.93816761,2619.3,2619.2,0.76312]
[1749041896405,4.93816761,2619.3,2619.1,5.37015]
[1749041896406,0.76319,2619.2,2619.1,5.37015]
[1749041896607,2.91080761,2619.2,2619.1,5.37015]
[1749041896804,3.67394761,2619.2,2619.1,5.37015]
[1749041898007,2.91080761,2619.2,2619.1,5.37015]
[1749041898999,2.91080761,2619.2,2619.1,0.76315]
[1749041899210,3.67182512,2619.2,2619.1,0.76315]
[1749041899708,2.90868512,2619.2,2619.1,0.76315]
[1749041899910,2.90868512,2619.2,2619.1,0.83046476]
[1749041900110,3.67182512,2619.2,2619.1,0.83046476]
[1749041900904,3.67182512,2619.2,2616.6,0.15473671]
[1749041901111,3.2078,2617.8,2616.6,0.15473671]
[1749041901307,3.97167,2616.7,2616.6,0.15473671]
[1749041901508,4.17208806,2616.7,2616.6,0.15473671]
[1749041901712,4.17208806,2616.7,2616.6,0.91863671]
[1749041902213,4.17208806,2616.7,2616.6,5.91863671]
[1749041902519,4.17208806,2616.7,2616.6,10.87763671]
[1749041902704,4.17208806,2616.7,2616.6,5.87763671]
[1749041903301,4.17039556,2616.7,2616.6,5.87763671]
[1749041903518,4.17039556,2616.7,2616.6,5.87863671]
[1749041904312,0.00572716,2617.5,2616.6,5.87863671]
[1749041904313,3.2078,2617.0,2616.6,5.11473671]
[1749041904512,3.2078,2616.7,2616.6,6.52443671]
[1749041905010,3.2078,2616.7,2616.6,11.52443671]
[1749041906414,3.2078,2617.3,2616.7,1.90965]
[1749041906614,3.2078,2617.0,2616.9,0.76381]
[1749041906810,3.2078,2617.3,2616.9,3.97161]
[1749041907014,3.2078,2617.3,2617.2,0.76373]
[1749041907210,0.00572716,2617.5,2617.2,4.961]
[1749041907417,0.00572716,2617.5,2617.4,0.76367]
[1749041908418,0.00572716,2617.5,2617.4,5.72467]
[1749041909221,3.21352716,2617.5,2617.4,4.961]
[1749041909414,3.21352716,2617.5,2617.4,0.76367]
[1749041909613,3.21352716,2617.5,2617.4,5.72467]
[1749041909920,3.97716716,2617.5,2617.4,4.961]
[1749041910105,3.21352716,2617.5,2616.9,1.2983]
[1749041910309,3.2078,2617.2,2617.1,0.76376]
[1749041911215,3.2078,2617.2,2617.1,5.72476]
[1749041912011,3.21352716,2617.5,2617.4,0.76367]
[1749041913122,0.00572716,2617.5,2617.4,0.76367]
[1749041914819,7.16e-06,2617.5,2617.4,0.76367]
[1749041915016,7.16e-06,2617.5,2617.4,0.83098476]
[1749041915722,7.16e-06,2617.5,2617.4,7.07978476]
[1749041916219,7.16e-06,2617.5,2617.4,5.83098476]
[1749041916522,7.16e-06,2617.5,2617.4,30.24578476]
[1749041918022,3.2078,2617.8,2617.7,0.76358]
[1749041918822,3.2078,2617.8,2617.7,5.72458]
[1749041919318,4.18938237,2617.8,2617.7,5.72458]
[1749041919925,4.18939984,2617.8,2617.7,5.72458]
[1749041923023,0.20935984,2617.8,2617.7,5.72458]
[1749041923210,0.00572716,2618.0,2617.9,0.76352]
[1749041924016,7.16e-06,2618.0,2617.9,1.41472]
[1749041925922,7.16e-06,2618.0,2617.9,4.62252]
[1749041926722,7.16e-06,2618.0,2617.9,9.62252]
[1749041926923,7.16e-06,2618.0,2617.9,50.42252]
[1749041927520,7.16e-06,2618.0,2617.9,50.72362044]
[1749041931229,7.16e-06,2618.0,2617.9,50.7909352]
[1749041932023,7.16e-06,2618.0,2617.9,112.3629352]
[1749041932421,7.16e-06,2618.0,2617.9,62.95203476]
[1749041932625,7.16e-06,2618.0,2617.9,62.30083476]
[1749041932826,7.16e-06,2618.0,2617.9,39.33283476]
[1749041933022,7.16e-06,2618.0,2617.9,44.20783476]
[1749041935029,0.98476667,2618.0,2617.9,44.20783476]
[1749041936637,7.16e-06,2618.0,2617.9,44.20783476]
[1749041936827,0.98566104,2618.0,2617.9,44.20783476]
[1749041940727,7.16e-06,2618.0,2617.9,44.20783476]
[1749041941027,2.24619193,2618.0,2617.9,44.20783476]
[1749041941725,0.98619193,2618.0,2617.9,44.20783476]
[1749041943439,1.93e-06,2618.0,2617.9,47.41563476]
[1749041943640,1.2055,2618.5,2618.4,0.76338]
[1749041943845,1.2055,2618.5,2618.4,5.63838]
[1749041946638,1.2055,2618.5,2618.4,0.76338]
[1749041946840,1.2055,2618.5,2618.4,5.63738]
[1749041948132,3.2078,2618.6,2618.5,0.76335]
[1749041949433,4.4342,2618.6,2618.5,0.76335]
[1749041949635,4.4342,2618.6,2618.5,5.63735]
[1749041952138,4.4342,2618.6,2618.5,0.76335]
[1749041952339,4.4342,2618.6,2618.5,5.63735]
[1749041952541,9.4342,2618.6,2618.3,5.63738]
[1749041952739,0.76338,2618.4,2618.3,5.63738]
[1749041953140,0.76337,2618.5,2618.3,4.874]
[1749041953445,1.3214,2618.4,2618.3,5.63741]
[1749041953739,1.98,2618.4,2618.3,5.63741]
[1749041954737,6.98,2618.4,2618.0,0.76346]
[1749041955047,1.40391,2618.3,2618.2,5.63843]
[1749041955339,1.40391,2618.3,2617.9,40.47812476]
[1749041955340,6.8865287,2618.3,2617.9,40.47812476]
[1749041955541,6.8865287,2618.3,2617.9,44.20783476]
[1749041955542,3.2078,2618.0,2617.9,44.20783476]
[1749041955853,4.9494725,2618.0,2617.9,44.20783476]
[1749041956147,4.1859825,2618.0,2617.9,44.20783476]
[1749041956541,4.1859825,2618.0,2617.9,0.83083476]
[1749041959358,5.5155825,2618.0,2617.9,0.83083476]
[1749041959559,6.2790725,2618.0,2617.9,0.83083476]
[1749041960552,11.2790725,2618.0,2617.9,0.06731476]
[1749041961254,11.2790725,2618.0,2617.9,0.83083476]
[1749041962566,5.5155825,2618.0,2617.9,0.83083476]
[1749041962874,6.2790725,2618.0,2617.9,0.83083476]
[1749041964066,5.30089,2618.0,2617.9,0.83083476]
[1749041964267,6.27488526,2618.0,2617.9,0.83083476]
[1749041964564,6.27488526,2618.0,2617.9,0.06731476]
[1749041965461,11.27488526,2618.0,2617.9,0.06731476]
[1749041968374,11.27399078,2618.0,2617.9,0.06731476]
[1749041968870,11.27383266,2618.0,2617.9,0.06731476]
[1749041969572,6.27383266,2618.0,2617.9,0.06731476]
[1749041969866,5.30089,2618.0,2617.9,0.06731476]
[1749041970169,6.27362847,2618.0,2617.9,0.06731476]
[1749041970773,6.27362847,2618.0,2617.9,0.83083476]
[1749041971174,6.27362847,2618.0,2617.9,0.06731476]
[1749041972676,6.27404002,2618.0,2617.9,0.06731476]
[1749041973574,6.27429774,2618.0,2617.9,0.06731476]
[1749041976975,6.27506516,2618.0,2617.9,0.06731476]
[1749041977375,6.27506516,2618.0,2617.9,0.83083476]
[1749041978471,4.18197516,2618.0,2617.9,0.83083476]
[1749041979178,4.94546516,2618.0,2617.9,0.83083476]
[1749041979677,4.94546516,2618.0,2617.9,0.06731476]
[1749041979878,4.94546516,2618.0,2617.9,0.83083476]
[1749041980272,4.18197516,2618.0,2617.9,0.83083476]
[1749041980473,0.97417516,2618.0,2617.9,0.83083476]
[1749041981077,3.2078,2618.3,2618.2,0.76343]
[1749041981278,4.18413798,2618.3,2618.2,0.76343]
[1749041982676,4.18413798,2618.3,2618.1,6.19474]
[1749041982877,1.73976798,2618.2,2618.1,6.19474]
[1749041983380,0.97633798,2618.2,2618.1,6.19474]
[1749041985174,3.2078,2618.3,2618.2,0.76343]
[1749041985371,4.18117857,2618.3,2618.2,0.76343]
[1749041985774,3.2078,2618.3,2618.2,0.76343]
[1749041985972,3.2078,2618.3,2618.2,1.96983]
[1749041986778,4.17809065,2618.3,2618.2,1.96983]
[1749041989473,4.17857342,2618.3,2618.2,1.96983]
[1749041989881,4.17857342,2618.3,2618.2,6.74783]
[1749041990785,4.17857342,2618.3,2618.2,5.54143]
[1749041991085,4.17857342,2618.3,2618.2,5.60874476]
[1749041992586,4.94198342,2618.3,2618.2,5.52774476]
[1749041992982,4.93365473,2618.3,2618.2,5.52774476]
[1749041993182,4.17024473,2618.3,2618.2,5.52774476]
[1749041993578,4.17024473,2618.3,2618.2,5.52674476]
[1749041993781,4.18178683,2618.3,2618.2,5.52674476]
[1749041994980,4.94519683,2618.3,2618.2,5.52674476]
[1749041995285,4.18178683,2618.3,2618.2,5.52674476]
[1749041997895,3.19947131,2618.3,2618.2,5.52674476]
[1749041998092,4.18027551,2618.3,2618.2,5.52674476]
[1749042000387,4.94368551,2618.3,2618.2,5.52674476]
[1749042000989,3.96288131,2618.3,2618.2,5.52674476]
[1749042001293,4.17944482,2618.3,2618.2,5.52674476]
[1749042002195,9.94285482,2618.3,2618.2,0.06731476]
[1749042002394,11.20575482,2618.3,2618.2,0.06731476]
[1749042002595,10.44234482,2618.3,2617.5,1.90908]
[1749042002788,10.44234482,2618.3,2617.2,3.82428716]
[1749042002789,0.7637,2617.3,2617.2,4.70172716]
[1749042002988,4.95147351,2617.3,2617.2,4.70172716]
[1749042003287,4.18777351,2617.3,2617.2,0.76945716]
[1749042004094,4.18777351,2617.3,2617.2,5.76945716]
[1749042004296,4.18777351,2617.3,2617.2,5.83677192]
[1749042004500,4.18556967,2617.3,2617.2,5.83677192]
[1749042004793,3.38168967,2617.3,2617.2,5.83677192]
[1749042004994,0.97776967,2617.3,2617.2,5.83677192]
[1749042005492,0.97776967,2617.3,2617.2,7.79197192]
[1749042006288,0.97776967,2617.3,2617.2,2.79197192]
[1749042006496,0.97776967,2617.3,2617.2,7.48897192]
[1749042007491,0.97776967,2617.3,2617.2,6.18497192]
[1749042008593,3.2078,2617.6,2617.5,0.76364]
[1749042008896,4.17637184,2617.6,2617.5,0.76364]
[1749042009095,4.93998184,2617.6,2617.5,5.46064]
[1749042009295,7.44008184,2617.6,2617.5,5.46064]
[1749042009493,7.44008184,2617.6,2617.5,4.697]
[1749042010489,7.44008184,2617.6,2617.5,5.46064]
[1749042010695,6.67647184,2617.6,2617.5,5.46064]
[1749042010907,6.67647184,2617.6,2617.5,0.76364]
[1749042011199,6.67647184,2617.6,2617.5,5.46064]
[1749042011396,6.67647184,2617.6,2617.3,0.76367]
[1749042011598,0.96857184,2617.5,2617.4,5.46067]
[1749042011796,2.27377184,2617.5,2617.4,5.46067]
[1749042012603,2.27236927,2617.5,2617.4,5.46067]
[1749042014097,3.03600927,2617.5,2617.4,5.46067]
[1749042014297,2.27236927,2617.5,2617.4,5.46067]
[1749042014806,2.27236927,2617.5,2617.4,0.76367]
[1749042015003,2.27236927,2617.5,2617.4,5.46067]
[1749042015600,3.03600927,2617.5,2617.4,0.76367]
[1749042015806,2.27236927,2617.5,2617.4,5.46067]
[1749042016700,2.2721342,2617.5,2617.4,5.46067]
[1749042017201,2.2721342,2617.5,2617.4,0.76367]
[1749042017508,3.0357742,2617.5,2617.4,5.46067]
[1749042018605,2.2721342,2617.5,2617.4,5.46067]
[1749042018804,3.0357742,2617.5,2617.4,5.46067]
[1749042019609,2.2721342,2617.5,2617.4,5.46067]
[1749042020208,0.9669342,2617.5,2617.4,5.46067]
[1749042020708,0.9669342,2617.5,2617.4,5.52798476]
[1749042020900,0.96773403,2617.5,2617.4,5.52798476]
[1749042021610,1.73137403,2617.5,2617.4,5.52798476]
[1749042022407,0.96773403,2617.5,2617.4,5.52798476]
[1749042022810,1.73137403,2617.5,2617.4,5.52798476]
[1749042026707,1.73137403,2617.5,2617.4,0.06731476]
[1749042026908,2.93647403,2617.5,2617.4,0.06731476]
[1749042027503,2.93647403,2617.5,2617.4,0.83097476]
[1749042027707,2.93647403,2617.5,2617.4,0.06731476]
[1749042029108,2.93730036,2617.5,2617.4,0.06731476]
[1749042030616,0.76369,2617.3,2617.2,0.00572716]
[1749042030817,4.17636036,2617.3,2617.2,5.41144716]
[1749042031119,0.96856036,2617.3,2617.2,5.41144716]
[1749042031512,0.96856036,2617.3,2617.2,6.03374716]
[1749042031720,0.96856036,2617.3,2617.2,7.34984716]
[1749042032912,4.61241,2617.6,2617.5,0.76363]
[1749042033214,4.81606199,2617.6,2617.5,0.76363]
[1749042033718,4.81606199,2617.6,2617.3,1.90922]
[1749042033719,0.76366,2617.5,2617.4,0.83097476]
[1749042033915,0.96726199,2617.5,2617.4,0.83097476]
[1749042034820,0.96726199,2617.5,2617.4,0.76366]
[1749042035624,1.73089199,2617.5,2617.4,0.76366]
[1749042035821,0.96726199,2617.5,2617.4,0.76366]
[1749042036511,1.73089199,2617.5,2617.4,0.76366]
[1749042037517,0.96726199,2617.5,2617.4,0.76366]
[1749042040025,3.2078,2618.2,2618.1,0.76346]
[1749042040321,3.2078,2618.2,2618.1,5.40546]
[1749042046024,3.2078,2618.2,2618.1,6.65566]
[1749042047625,0.00572716,2618.7,2618.6,0.76331]
[1749042047817,0.00572716,2618.7,2618.6,5.40431]
[1749042048614,0.00572716,2618.7,2618.6,6.69221]
[1749042051126,0.00572716,2618.7,2618.6,6.75952476]
[1749042052022,0.95263708,2618.7,2618.6,6.69221]
[1749042052327,7.16e-06,2618.7,2618.6,11.69221]
[1749042052934,3.2078,2619.4,2619.3,0.76311]
[1749042053122,4.15528343,2619.4,2619.3,5.40311]
[1749042053317,4.15528343,2619.4,2619.3,4.64]
[1749042053625,4.91750881,2619.4,2619.3,4.64]
[1749042053826,4.91750881,2619.4,2619.3,5.40311]
[1749042054124,4.91750881,2619.4,2619.3,4.64]
[1749042055237,4.91750881,2619.4,2619.1,0.00572716]
[1749042055238,0.76314,2619.2,2619.1,0.00572716]
[1749042055431,1.70976881,2619.2,2619.1,0.00572716]
[1749042055819,2.98856881,2619.2,2619.1,0.00572716]
[1749042057230,2.98816791,2619.2,2619.1,0.00572716]
[1749042058825,2.98816791,2619.2,2619.1,0.76889716]
[1749042059936,2.98816791,2619.2,2619.1,0.00572716]
[1749042060436,7.98816791,2619.2,2619.1,0.00572716]
[1749042060835,7.98816791,2619.2,2618.6,0.76328]
[1749042060836,0.76333,2618.7,2618.6,0.76328]
[1749042061034,3.97113,2618.7,2618.6,0.76328]
[1749042061236,4.91863121,2618.7,2618.6,5.46859476]
[1749042061435,0.94750121,2618.7,2618.6,5.46859476]
[1749042061733,0.10879405,2618.7,2618.6,8.67639476]
[1749042062031,4.05e-06,2618.7,2618.6,8.67639476]
[1749042062431,5.8137,2619.3,2619.2,0.76314]
[1749042062634,5.8137,2619.3,2619.2,5.40114]
[1749042063533,3.21352716,2619.6,2619.5,0.76305]
[1749042065741,3.21352716,2619.6,2619.5,1.37415]
[1749042066235,3.21352716,2619.6,2619.5,0.76305]
[1749042066427,3.21352716,2619.6,2619.5,5.40105]
[1749042070430,0.00572716,2619.6,2619.5,5.40105]
[1749042070739,0.00572716,2619.6,2619.5,6.01615]
[1749042074946,0.95229609,2619.6,2619.5,6.01615]
[1749042076639,0.95229609,2619.6,2619.5,5.40005]
[1749042076640,4.16009609,2619.6,2619.5,5.40005]
[1749042076838,3.21352716,2619.6,2619.5,5.40005]
[1749042077043,4.16043865,2619.6,2619.5,5.40005]
[1749042077350,0.95263865,2619.6,2619.5,5.40005]
[1749042078247,4.16043865,2619.6,2619.5,4.637]
[1749042078555,4.16043865,2619.6,2619.5,5.40005]
[1749042079645,4.16043865,2619.6,2619.5,0.76305]
[1749042079843,5.39803865,2619.6,2619.5,5.40005]
[1749042080547,0.95263865,2619.6,2619.5,5.40005]
[1749042081147,0.95359987,2619.6,2619.5,6.02295]
[1749042085251,0.95015837,2619.6,2619.5,6.02295]
[1749042088554,0.14159837,2619.6,2619.5,6.02295]
[1749042088758,3.2078,2619.9,2619.8,0.76297]
[1749042089256,0.6184,2620.2,2620.1,0.76288]
[1749042089555,1.8661,2620.2,2620.1,5.39688]
[1749042089751,0.6184,2620.2,2620.1,5.39688]
[1749042089958,2.0,2620.3,2620.2,0.76285]
[1749042090259,7.16e-06,2620.4,2620.3,0.76282]
[1749042090451,7.16e-06,2620.4,2620.3,39.24282]
[1749042092150,7.16e-06,2620.4,2620.3,85.04282]
[1749042092358,7.16e-06,2620.4,2620.3,80.04282]
[1749042092653,7.16e-06,2620.4,2620.3,85.04282]
[1749042093252,7.16e-06,2620.4,2620.3,107.35182]
[1749042093760,2.0,2621.0,2620.9,0.76265]
[1749042094062,2.0,2621.0,2620.9,5.39565]
[1749042095453,2.0,2621.0,2620.9,0.76265]
[1749042095653,5.2078,2621.0,2620.9,5.39565]
[1749042095854,5.97044,2621.0,2620.9,4.633]
[1749042096053,7.29144,2621.0,2620.9,5.39565]
[1749042096258,6.5288,2621.0,2620.9,5.39565]
[1749042096457,7.29142,2621.0,2620.9,5.39565]
[1749042096661,6.5288,2621.0,2620.9,5.39565]
[1749042097159,13.43536,2621.0,2620.8,4.633]
[1749042097354,0.76265,2620.9,2620.8,4.633]
[1749042097651,0.76265,2620.9,2620.3,38.48]
[1749042097652,1.9067,2620.8,2620.3,38.48]
[1749042097862,3.2078,2620.4,2620.3,0.76282]
[1749042098065,3.97059,2620.4,2620.3,5.39582]
[1749042098259,4.5403,2620.4,2620.3,4.633]
[1749042098562,4.5403,2620.4,2620.3,5.39582]
[1749042098748,0.76283,2620.3,2619.9,1.91306716]
[1749042098952,1.3325,2620.2,2620.1,0.76288]
[1749042100765,2.29030621,2620.2,2620.1,0.76288]
[1749042101262,2.29030621,2620.2,2620.1,5.39588]
[1749042101662,2.29243722,2620.2,2620.1,5.39588]
[1749042102366,2.29243722,2620.2,2620.1,0.76288]
[1749042102568,2.29243722,2620.2,2620.1,5.39588]
[1749042104067,3.05528722,2620.2,2620.1,5.39588]
[1749042104264,2.29243722,2620.2,2620.1,5.39588]
[1749042106864,0.95993722,2620.2,2620.1,5.39588]
[1749042107771,0.95993722,2620.2,2620.1,0.76288]
[1749042107971,1.57953722,2620.2,2620.1,5.39588]
[1749042108866,1.57953722,2620.2,2620.1,0.76288]
[1749042109066,1.57953722,2620.2,2620.1,5.39588]
[1749042109262,1.57953722,2620.2,2619.9,0.00572716]
[1749042109462,6.15293722,2620.1,2620.0,5.39591]
[1749042109871,6.91581722,2620.1,2620.0,5.39591]
[1749042110069,0.76291,2620.0,2619.9,0.00572716]
[1749042110277,3.04524722,2620.0,2619.9,0.00572716]
[1749042110467,0.76305,2619.5,2619.4,4.633]
[1749042110667,0.76312,2619.4,2618.7,43.58898]
[1749042110873,3.2078,2619.2,2619.1,0.76317]
[1749042111179,4.16773722,2619.2,2619.1,0.76317]
[1749042111376,5.49013722,2619.2,2619.1,5.39617]
[1749042113977,4.5302,2619.2,2619.1,5.39617]
[1749042114177,5.4880666,2619.2,2619.1,5.39617]
[1749042114375,4.1656666,2619.2,2619.1,5.39617]
[1749042115578,4.1656666,2619.2,2619.1,5.71952782]
[1749042115773,4.1656666,2619.2,2619.1,0.76317]
[1749042116074,4.1656666,2619.2,2619.1,5.39417]
[1749042116674,4.4939,2619.2,2619.1,0.76317]
[1749042116978,4.4939,2619.2,2619.1,5.39417]
[1749042117474,5.45034092,2619.2,2619.1,5.39417]
[1749042118380,5.44977791,2619.2,2619.1,5.39417]
[1749042119679,6.21291791,2619.2,2619.1,5.39417]
[1749042119977,5.44977791,2619.2,2619.1,5.39417]
[1749042121372,5.44977791,2619.2,2619.1,0.76317]
[1749042121577,5.44977791,2619.2,2619.1,5.39417]
[1749042123287,4.16367791,2619.2,2619.1,5.39417]
[1749042125085,4.16389264,2619.2,2619.1,0.76317]
[1749042125278,4.16389264,2619.2,2619.1,5.39417]
[1749042126085,5.41409264,2619.2,2619.1,5.39417]
[1749042126986,6.17723264,2619.2,2619.1,5.39417]
[1749042127187,5.41409264,2619.2,2619.1,5.39417]
[1749042127785,6.17723264,2619.2,2619.1,5.39417]
[1749042127980,5.41409264,2619.2,2619.1,5.39417]
[1749042128987,6.17723264,2619.2,2619.1,5.39417]
[1749042129177,5.43217812,2619.2,2619.1,5.39417]
[1749042129484,4.18197812,2619.2,2619.1,5.39417]
[1749042132392,4.18197812,2619.2,2619.1,6.06137]
[1749042132793,4.18197812,2619.2,2619.1,7.30977]
[1749042133393,4.17930419,2619.2,2619.1,6.06137]
[1749042133893,4.17930419,2619.2,2619.1,1.43037]
[1749042134098,4.17930419,2619.2,2619.1,6.06137]
[1749042135191,4.17930419,2619.2,2619.1,6.38557603]
[1749042135489,4.17930419,2619.2,2619.1,1.75457693]
[1749042135693,4.17930419,2619.2,2619.1,6.06137]
[1749042136098,4.17930419,2619.2,2619.1,1.43037]
[1749042136298,4.17930419,2619.2,2619.1,6.06137]
[1749042137401,3.2078,2619.2,2619.1,6.06137]
[1749042137697,4.17762483,2619.2,2619.1,6.06137]
[1749042138591,4.17762483,2619.2,2619.1,5.39417]